bitfinex/quotes_ETHUSD_20250923
["timestamp","ask_amount","ask_price","bid_price","bid_amount"]
[1758638789143,13.13000637,4194.2,4194.1,0.02]
[1758638789516,8.68376147,4194.2,4194.1,0.02]
[1758638789839,11.06691082,4194.2,4194.1,0.2492]
[1758638790044,11.06691082,4194.2,4194.1,0.02]
[1758638791563,11.85891082,4194.2,4194.1,0.02]
[1758638791724,12.47341082,4194.2,4194.1,0.02]
[1758638792114,12.98329223,4194.2,4194.1,0.02]
[1758638793157,8.25279223,4194.2,4194.1,0.02]
[1758638793451,14.43179223,4194.2,4194.1,0.02]
[1758638793853,14.43158679,4194.2,4194.1,0.02]
[1758638794496,0.792,4194.0,4193.6,0.004]
[1758638794642,6.17652917,4193.7,4193.6,0.004]
[1758638794842,11.15608553,4193.7,4193.6,0.004]
[1758638795147,11.77058553,4193.7,4193.6,0.004]
[1758638796451,13.21808553,4193.7,4193.6,0.004]
[1758638796765,14.92595276,4193.7,4193.6,0.004]
[1758638797275,14.31145276,4193.7,4193.6,0.004]
[1758638797576,14.92595276,4193.7,4193.6,0.004]
[1758638797775,14.77565276,4193.7,4193.6,0.004]
[1758638797980,14.31145276,4193.7,4193.6,0.004]
[1758638799081,8.13345276,4193.7,4193.6,0.004]
[1758638799397,12.88580453,4193.7,4193.6,0.004]
[1758638799574,14.94880453,4193.7,4193.6,0.004]
[1758638800345,14.31145276,4193.7,4193.6,0.004]
[1758638801342,15.16125512,4193.7,4193.6,0.004]
[1758638801782,14.31145276,4193.7,4193.6,0.004]
[1758638802343,15.16125512,4193.7,4193.6,0.004]
[1758638802548,4.34145276,4193.7,4193.6,0.2406]
[1758638802792,7.04055636,4193.7,4193.6,0.6845]
[1758638802990,6.24808553,4193.7,4193.6,0.004]
[1758638803192,13.85477022,4193.7,4193.6,0.004]
[1758638803498,13.21708553,4193.7,4193.6,0.004]
[1758638803850,14.87178167,4193.7,4193.6,0.004]
[1758638804388,14.87178167,4193.7,4193.2,0.004]
[1758638804389,3.17675663,4193.3,4193.2,0.004]
[1758638804612,6.1768135,4193.2,4193.1,0.02]
[1758638804750,7.89147376,4193.2,4193.1,0.02]
[1758638804979,14.87250693,4193.2,4193.1,0.02]
[1758638805186,14.02140303,4193.2,4193.1,0.02]
[1758638805516,14.51063317,4193.2,4193.1,0.02]
[1758638805721,2.38538237,4192.2,4192.1,0.02]
[1758638805918,12.80963487,4192.2,4192.1,0.02]
[1758638806231,12.80963487,4192.2,4192.1,0.7005]
[1758638806595,12.80963487,4192.2,4192.1,0.5505]
[1758638807218,12.80883487,4192.2,4192.1,0.5505]
[1758638807381,3.0,4192.1,4191.7,0.4439]
[1758638807581,2.38575574,4191.6,4191.1,0.02]
[1758638807915,3.35367495,4191.5,4191.1,0.02]
[1758638808121,0.35367495,4191.4,4191.2,0.4439]
[1758638808333,0.35367495,4191.4,4191.1,0.02]
[1758638808334,5.73956954,4191.3,4191.1,0.02]
[1758638808621,0.35367495,4191.2,4191.1,0.02]
[1758638809116,0.35367495,4191.2,4191.1,0.2566]
[1758638809621,6.24392636,4191.2,4191.1,0.02]
[1758638809779,12.14098344,4191.2,4191.1,0.02]
[1758638810610,42.31129182,4191.2,4191.1,0.02]
[1758638810923,42.94978424,4191.2,4191.1,0.02]
[1758638811286,42.31171087,4191.2,4191.1,0.02]
[1758638811512,42.53861087,4191.2,4191.1,0.02]
[1758638811712,0.792,4191.0,4190.1,0.02]
[1758638811916,3.0,4191.1,4190.1,0.2566]
[1758638811917,2.38652092,4190.2,4190.1,0.2566]
[1758638812112,0.354094,4190.2,4190.1,0.2566]
[1758638812416,3.47376801,4190.2,4190.1,2.64317788]
[1758638812618,0.47376801,4190.2,4190.1,3.59006134]
[1758638812816,2.70239809,4191.7,4190.1,1.20348346]
[1758638813020,0.71778148,4191.0,4190.9,2.38607618]
[1758638813223,0.13303369,4191.0,4189.7,2.3867506]
[1758638813385,2.38572913,4191.6,4188.4,30.38444667]
[1758638813386,0.13303369,4190.9,4190.2,0.0238652]
[1758638813586,4.113,4191.1,4190.8,14.5]
[1758638813790,0.13308175,4191.0,4190.9,0.6805]
[1758638814317,0.13308175,4191.0,4190.9,0.2366]
[1758638814483,0.90880394,4191.0,4190.9,0.2366]
[1758638814692,1.41985719,4191.0,4190.9,0.2366]
[1758638814924,6.80592256,4191.0,4190.8,14.5]
[1758638815087,0.64397345,4190.9,4190.8,14.5]
[1758638815404,2.3862769,4190.7,4190.1,0.02]
[1758638815604,3.0,4190.5,4190.1,0.2566]
[1758638815806,0.13308175,4190.4,4190.2,0.4439]
[1758638816012,0.13308175,4190.3,4190.2,14.5]
[1758638816198,0.13308175,4190.3,4190.2,14.9439]
[1758638816719,0.13308175,4190.3,4190.2,17.56702092]
[1758638817310,3.5107916,4191.4,4190.9,2.38607357]
[1758638817622,3.0,4191.2,4191.1,2.38600844]
[1758638817822,3.13302049,4191.2,4191.1,0.4439]
[1758638818025,3.13302049,4191.2,4191.1,0.6805]
[1758638818227,3.13302049,4191.2,4191.1,0.2366]
[1758638818393,0.13302049,4191.2,4191.1,3.06650844]
[1758638818789,0.13302049,4191.2,4191.1,17.56650844]
[1758638819000,0.13302049,4191.2,4191.1,19.56415578]
[1758638819501,2.064,4192.4,4191.1,17.17814734]
[1758638819715,3.0,4192.2,4192.0,2.38544026]
[1758638819916,0.13314236,4192.1,4191.8,2.38556953]
[1758638820225,0.13314236,4192.0,4191.9,2.38555309]
[1758638820644,0.13314236,4192.0,4191.9,17.56605309]
[1758638820791,0.13314236,4192.0,4191.9,19.56361056]
[1758638821717,0.12489753,4192.6,4192.5,2.38521168]
[1758638821919,0.13325659,4192.6,4192.5,2.38521168]
[1758638822136,0.13325659,4192.6,4192.5,3.06571168]
[1758638823130,4.111,4193.6,4192.8,2.38504102]
[1758638823442,0.15328413,4192.9,4192.8,2.38504102]
[1758638823624,0.15328413,4192.9,4192.8,3.06554102]
[1758638823932,0.15328413,4192.9,4192.8,14.5]
[1758638824293,3.15328413,4192.9,4192.8,14.5]
[1758638824491,0.15328413,4192.9,4192.8,14.5]
[1758638824714,0.37538308,4192.9,4192.8,14.5]
[1758638824902,5.76036721,4192.9,4192.8,14.5]
[1758638825100,3.0,4192.8,4192.1,4.7915]
[1758638825434,0.35538308,4192.7,4192.2,2.62198237]
[1758638825603,0.35538308,4192.6,4192.3,15.2997]
[1758638825808,0.35538308,4192.5,4192.4,3.06572456]
[1758638826118,0.35538308,4192.5,4192.4,3.08957724]
[1758638826290,0.02,4192.9,4192.4,4.04817288]
[1758638826490,0.02,4192.9,4192.8,16.88504102]
[1758638826841,0.15326577,4192.9,4192.8,16.88504102]
[1758638826997,0.02,4192.9,4192.8,17.56554102]
[1758638829329,0.02,4192.9,4192.8,21.67454102]
[1758638829510,0.02,4192.9,4192.8,24.11737862]
[1758638830825,0.001,4193.2,4193.1,2.38487038]
[1758638831026,0.001,4193.2,4193.1,6.51771908]
[1758638831193,0.001,4193.2,4193.1,7.20337038]
[1758638831406,0.001,4193.2,4193.1,21.70337038]
[1758638831602,0.001,4193.2,4193.1,24.14620798]
[1758638832229,0.0002,4193.2,4193.1,24.14620798]
[1758638832813,0.0002,4193.2,4193.1,24.93820798]
[1758638833015,0.0002,4193.2,4193.1,27.93820798]
[1758638833320,0.0002,4193.2,4193.1,27.14620798]
[1758638833523,0.0002,4193.2,4193.1,27.93820798]
[1758638834944,0.0002,4193.2,4193.1,29.79620798]
[1758638836043,0.0002,4193.2,4193.1,24.14420798]
[1758638836256,0.0002,4193.2,4193.1,24.26340798]
[1758638837144,0.0002,4193.2,4193.1,20.15640798]
[1758638837315,0.0002,4193.2,4193.1,21.11107038]
[1758638838140,0.0002,4193.2,4193.1,21.11007038]
[1758638838509,0.0002,4193.2,4193.1,21.78467038]
[1758638838946,0.0002,4193.2,4193.1,17.00407038]
[1758638840545,0.0002,4193.2,4193.1,16.88487038]
[1758638840731,0.0002,4193.2,4193.1,18.606]
[1758638841043,0.6539,4193.2,4193.1,18.606]
[1758638841247,0.6539,4193.2,4193.1,20.99087038]
[1758638841466,0.6539,4193.2,4193.1,18.606]
[1758638841809,0.6539,4193.2,4193.1,14.5]
[1758638842155,0.6539,4193.2,4193.1,18.606]
[1758638842643,0.6539,4193.2,4193.1,14.5]
[1758638843145,6.8307135,4193.2,4193.1,14.5]
[1758638843349,7.88499188,4193.2,4193.1,14.5]
[1758638843722,2.38524241,4192.5,4192.2,4.105]
[1758638844248,3.03896858,4192.4,4192.3,14.5]
[1758638844813,6.17738237,4192.2,4192.1,0.004]
[1758638845013,6.31016738,4192.2,4192.1,0.004]
[1758638845253,8.18575305,4192.2,4192.1,0.004]
[1758638846015,14.57512414,4192.2,4192.1,0.004]
[1758638846442,2.38561,4191.8,4191.7,0.004]
[1758638846649,36.70207448,4191.8,4191.7,0.004]
[1758638846954,37.35577448,4191.8,4191.7,0.004]
[1758638847136,38.89890357,4191.8,4191.7,0.004]
[1758638847547,35.55625989,4191.2,4191.1,0.02]
[1758638847852,42.07841599,4191.2,4191.1,0.02]
[1758638848155,42.73211599,4191.2,4191.1,0.02]
[1758638848718,42.73211506,4191.2,4191.1,0.02]
[1758638848933,43.65365866,4191.2,4191.1,0.02]
[1758638849651,11.42135028,4191.2,4191.1,0.02]
[1758638849853,12.21335028,4191.2,4191.1,0.02]
[1758638851457,8.10735028,4191.2,4191.1,0.02]
[1758638851668,11.99197919,4191.2,4191.1,0.02]
[1758638852023,12.21280009,4191.2,4191.1,0.02]
[1758638852256,11.99197919,4191.2,4191.1,0.02]
[1758638852628,7.88597919,4191.2,4191.1,0.02]
[1758638852826,11.99197919,4191.2,4191.1,0.02]
[1758638853426,7.88597919,4191.2,4191.1,0.02]
[1758638853630,7.23227919,4191.2,4191.1,0.02]
[1758638853838,4.106,4191.4,4191.1,0.6946]
[1758638854042,4.106,4191.4,4191.1,0.2526]
[1758638854465,3.0,4191.3,4191.1,0.2526]
[1758638854651,0.1192,4191.5,4191.1,0.2526]
[1758638855070,4.106,4191.7,4191.2,0.2326]
[1758638855386,6.49167484,4191.7,4191.3,14.7326]
[1758638855583,3.0,4191.6,4191.3,14.7326]
[1758638856286,0.1192,4191.8,4191.3,14.7326]
[1758638856467,3.0,4191.6,4191.3,14.5]
[1758638856964,9.49168756,4191.7,4191.3,14.7326]
[1758638857165,7.1052,4191.7,4191.4,0.2326]
[1758638858172,7.1052,4191.7,4191.5,0.2326]
[1758638858564,7.1052,4191.7,4191.3,17.32787997]
[1758638858565,2.38579745,4191.5,4191.3,14.5]
[1758638858765,6.49167691,4191.7,4191.3,14.5]
[1758638858971,2.38576853,4191.6,4191.3,14.5]
[1758638859184,5.38576853,4191.6,4191.3,14.5]
[1758638859341,3.0,4191.5,4191.3,14.5]
[1758638859541,3.0,4191.6,4191.4,0.2326]
[1758638859845,3.03949054,4191.5,4191.3,14.5]
[1758638860090,2.38589459,4191.3,4191.1,0.02]
[1758638860247,2.38595151,4191.2,4191.1,0.02]
[1758638860450,3.03965151,4191.2,4191.1,0.02]
[1758638860657,0.6537,4191.2,4191.1,14.52]
[1758638860861,0.1192,4191.2,4191.1,16.90600844]
[1758638861044,3.0,4191.6,4191.1,17.12421173]
[1758638861262,3.0,4191.6,4191.2,0.231]
[1758638861677,3.0,4191.6,4191.2,2.61693576]
[1758638861875,3.0,4191.6,4191.3,0.231]
[1758638862280,3.0,4191.6,4191.3,2.61688321]
[1758638863105,3.0,4191.6,4191.1,14.6392]
[1758638863302,2.50510744,4191.3,4191.1,14.52]
[1758638863504,9.49095151,4191.2,4191.1,14.52]
[1758638863802,10.19275151,4191.2,4191.1,14.52]
[1758638864178,9.95415151,4191.2,4191.1,14.52]
[1758638864607,12.45829264,4191.2,4191.1,0.02]
[1758638864902,12.67946299,4191.2,4191.1,0.02]
[1758638866503,14.74346299,4191.2,4191.1,0.02]
[1758638866701,14.74346299,4191.2,4191.1,0.024]
[1758638867409,15.25406212,4191.2,4191.1,0.024]
[1758638867568,15.25447432,4191.2,4191.1,0.024]
[1758638868294,14.55267432,4191.2,4191.1,0.024]
[1758638868476,14.55301799,4191.2,4191.1,0.024]
[1758638869306,15.25481799,4191.2,4191.1,0.024]
[1758638869802,8.84721799,4191.2,4191.1,0.024]
[1758638870003,8.38401799,4191.2,4191.1,0.024]
[1758638870203,14.55301799,4191.2,4191.1,0.024]
[1758638870798,8.38401799,4191.2,4191.1,0.024]
[1758638870993,12.72761799,4191.2,4191.1,0.024]
[1758638871300,15.25481799,4191.2,4191.1,0.024]
[1758638872087,15.89152803,4191.2,4191.1,0.024]
[1758638872383,15.25481799,4191.2,4191.1,0.024]
[1758638872583,8.38401799,4191.2,4191.1,0.024]
[1758638872889,14.55301799,4191.2,4191.1,0.024]
[1758638873220,15.25481799,4191.2,4191.1,0.024]
[1758638873421,16.10614122,4191.2,4191.1,0.024]
[1758638874421,15.25481799,4191.2,4191.1,0.024]
[1758638874781,16.11026459,4191.2,4191.1,0.024]
[1758638874986,13.34446459,4191.2,4191.1,0.024]
[1758638875182,7.89863567,4191.2,4191.1,0.024]
[1758638875418,12.00263567,4191.2,4191.1,0.024]
[1758638875622,1.7219176,4191.2,4191.1,0.6887]
[1758638875829,4.970471,4191.2,4191.1,0.6887]
[1758638876024,7.970471,4191.2,4191.1,0.6887]
[1758638877241,7.970471,4191.2,4191.1,15.1887]
[1758638877533,0.866471,4191.2,4191.1,15.1887]
[1758638877725,3.866471,4191.2,4191.1,15.1887]
[1758638878237,0.866471,4191.2,4191.1,17.57470844]
[1758638878446,0.35587187,4191.2,4191.1,19.69038896]
[1758638880243,0.35587187,4191.2,4191.1,15.3079]
[1758638880448,3.35587187,4191.2,4191.1,14.524]
[1758638880951,0.35587187,4191.2,4191.1,15.1887]
[1758638881149,3.35587187,4191.2,4191.1,15.1887]
[1758638881459,0.35587187,4191.2,4191.1,15.1887]
[1758638881650,0.35587187,4191.2,4191.1,14.755]
[1758638881949,3.35587187,4191.2,4191.1,15.1887]
[1758638882103,0.35507187,4191.2,4191.1,17.57470844]
[1758638882520,0.35507187,4191.2,4191.1,19.58311688]
[1758638883541,0.13225108,4191.2,4191.1,23.80531688]
[1758638883841,0.13225108,4191.2,4191.1,16.88260844]
[1758638884057,0.35513046,4191.2,4191.1,14.8742]
[1758638884224,0.35513046,4191.2,4191.1,14.6432]
[1758638884425,0.35513046,4191.2,4191.1,14.524]
[1758638884658,9.84408197,4191.2,4191.1,14.524]
[1758638884858,12.34583306,4191.2,4191.1,0.024]
[1758638885059,13.77970893,4191.2,4191.1,0.024]
[1758638885721,13.00558198,4191.2,4191.1,0.024]
[1758638885920,13.86102858,4191.2,4191.1,0.024]
[1758638886158,14.28227611,4191.2,4191.1,0.024]
[1758638886359,2.38612231,4190.9,4190.8,0.004]
[1758638886566,12.19012361,4190.9,4190.8,0.004]
[1758638886753,12.89192361,4190.9,4190.8,1e-08]
[1758638887061,3.17823618,4190.7,4190.6,0.004]
[1758638887360,10.26251158,4190.7,4190.6,0.004]
[1758638887701,10.96431158,4190.7,4190.6,0.004]
[1758638887866,15.06986665,4190.7,4190.6,0.004]
[1758638890673,16.35359082,4190.7,4190.6,1e-08]
[1758638891168,10.18659082,4190.7,4190.6,1e-08]
[1758638891369,8.90286665,4190.7,4190.6,1e-08]
[1758638891575,15.07086665,4190.7,4190.6,1e-08]
[1758638891977,0.792,4190.2,4190.1,0.02]
[1758638892142,35.93495949,4190.2,4190.1,1e-08]
[1758638892341,37.80548708,4190.2,4190.1,1e-08]
[1758638892742,37.80548708,4190.2,4187.5,0.2406]
[1758638892743,0.792,4189.8,4187.5,0.2406]
[1758638892943,2.38773695,4188.1,4187.6,0.467]
[1758638893174,3.0,4187.9,4187.7,0.7076]
[1758638893392,7.3253569,4187.8,4187.0,2.38834444]
[1758638893594,0.2223569,4187.7,4187.3,0.24523444]
[1758638893740,0.2223569,4187.6,4187.3,0.24523444]
[1758638893950,3.0,4187.6,4187.4,0.7076]
[1758638894159,7.23030355,4187.9,4187.5,0.7076]
[1758638894358,0.13324945,4187.8,4187.6,0.73148002]
[1758638894576,2.60929913,4188.7,4187.8,2.38784211]
[1758638894895,4.45806367,4188.6,4187.9,0.73147831]
[1758638895099,3.35506367,4188.5,4188.0,0.7076]
[1758638895280,5.387608,4188.3,4188.0,0.467]
[1758638895450,0.13315237,4188.2,4188.1,0.2406]
[1758638895781,0.13315237,4188.2,4188.1,0.7076]
[1758638896152,3.0,4188.3,4188.1,0.7076]
[1758638896349,5.38760356,4188.3,4188.2,0.7076]
[1758638896562,3.13305161,4188.3,4187.9,0.2406]
[1758638896764,5.38771758,4188.1,4187.3,0.004]
[1758638896968,5.38784397,4187.9,4187.5,0.2406]
[1758638897177,2.38795932,4187.7,4187.6,0.2406]
[1758638897376,2.38789438,4187.8,4187.6,0.467]
[1758638897573,2.38800267,4187.6,4187.3,0.2446]
[1758638897778,2.38802523,4187.6,4187.3,0.7116]
[1758638898053,2.38802523,4187.6,4187.4,0.7076]
[1758638898273,3.0,4187.7,4187.5,0.7076]
[1758638898485,3.0,4187.7,4187.6,0.2406]
[1758638898657,3.13290978,4187.7,4187.6,0.7076]
[1758638898857,3.0,4187.7,4187.6,0.7076]
[1758638899171,5.38794565,4187.7,4187.6,0.7076]
[1758638899374,3.0,4187.7,4187.6,0.7076]
[1758638900075,5.38794565,4187.7,4187.3,0.004]
[1758638900268,2.38804348,4187.6,4187.4,0.2406]
[1758638900464,3.0,4187.7,4187.4,0.2406]
[1758638900787,5.38799237,4187.7,4187.4,0.7076]
[1758638900966,3.0,4187.7,4187.5,0.2406]
[1758638901161,5.3879551,4187.7,4187.5,0.2406]
[1758638901769,3.0,4187.7,4187.5,0.2406]
[1758638902188,2.38800267,4187.6,4187.5,0.2406]
[1758638902735,2.38811673,4187.4,4187.3,0.004]
[1758638902881,9.49211673,4187.4,4187.3,0.004]
[1758638903392,10.28411673,4187.4,4187.3,0.004]
[1758638903701,10.98271673,4187.4,4187.3,0.004]
[1758638903902,11.11543294,4187.4,4187.3,0.004]
[1758638904107,12.68419795,4187.4,4187.3,0.004]
[1758638904308,9.59748122,4187.4,4187.3,0.004]
[1758638904512,11.85288174,4187.4,4187.3,0.004]
[1758638904924,3.792,4187.4,4187.3,0.004]
[1758638905122,3.0,4187.4,4187.3,0.004]
[1758638905409,3.0,4187.4,4187.3,0.7116]
[1758638905717,3.0,4187.4,4187.3,3.09977376]
[1758638906690,3.0,4187.4,4187.3,0.7116]
[1758638906893,3.0,4187.4,4187.3,3.09977376]
[1758638907422,2.9992,4187.4,4187.3,3.09977376]
[1758638907827,0.1192,4187.8,4187.7,2.38794565]
[1758638908040,2.11,4188.1,4187.5,0.1192]
[1758638908326,0.1192,4188.5,4187.5,0.1192]
[1758638908328,3.715,4188.2,4187.8,2.50707205]
[1758638908624,3.715,4188.3,4187.9,0.73147831]
[1758638908807,4.104,4188.4,4188.0,0.7076]
[1758638909134,4.104,4188.4,4188.1,0.7076]
[1758638909308,4.104,4188.4,4188.2,0.7076]
[1758638909511,3.0,4188.3,4188.2,0.467]
[1758638910038,3.0,4188.3,4187.9,0.2406]
[1758638910278,3.0,4188.2,4187.9,0.2406]
[1758638910444,3.0,4188.2,4188.0,0.7076]
[1758638910602,3.0,4188.2,4187.8,0.38367888]
[1758638910935,3.0,4188.2,4188.0,2.38777433]
[1758638911103,3.0,4188.2,4188.1,3.09531758]
[1758638911309,3.0,4188.2,4188.1,0.7076]
[1758638911605,3.0,4188.3,4188.2,2.38766057]
[1758638911917,0.1192,4188.5,4188.2,0.7076]
[1758638912107,3.0,4188.3,4188.2,0.7076]
[1758638912303,4.103,4188.5,4188.2,3.11912669]
[1758638912504,3.0,4188.4,4188.1,0.1192]
[1758638912711,3.0,4188.4,4187.7,0.2406]
[1758638912905,2.38761032,4188.3,4187.8,0.1192]
[1758638913337,3.59064698,4188.2,4187.8,0.1192]
[1758638913626,5.38777459,4188.0,4187.3,0.004]
[1758638913840,5.50709264,4187.8,4187.3,0.004]
[1758638914006,0.13304698,4187.7,4187.3,0.004]
[1758638914207,0.13304698,4187.6,4187.3,0.004]
[1758638914434,0.13304698,4187.5,4187.3,0.004]
[1758638914635,0.22199979,4187.7,4187.3,0.004]
[1758638914934,0.1332027,4187.6,4187.3,0.004]
[1758638915136,0.1332027,4187.5,4187.3,0.004]
[1758638915339,5.86252423,4187.4,4187.3,0.004]
[1758638915514,9.96552423,4187.4,4187.3,0.004]
[1758638916034,10.664271,4187.4,4187.3,0.004]
[1758638916208,8.27615427,4187.4,4187.3,0.004]
[1758638916612,0.47455427,4187.4,4187.3,0.004]
[1758638916935,0.35535427,4187.4,4187.3,0.7116]
[1758638917236,0.35535427,4187.4,4187.3,0.004]
[1758638917535,4.45919503,4187.4,4187.3,0.004]
[1758638917746,3.47455427,4187.4,4187.3,0.004]
[1758638917955,6.561271,4187.4,4187.3,0.004]
[1758638918311,7.07397972,4187.4,4187.3,0.004]
[1758638918652,11.17697972,4187.4,4187.3,0.004]
[1758638920165,3.98726299,4187.4,4187.3,0.004]
[1758638920329,3.35535427,4187.4,4187.3,0.2446]
[1758638920513,3.35535427,4187.4,4187.3,0.7116]
[1758638920715,3.35535427,4187.4,4187.3,0.004]
[1758638920917,3.35535427,4187.4,4187.3,0.2446]
[1758638921414,0.86806299,4187.4,4187.3,0.97160237]
[1758638921617,0.35535427,4187.4,4187.3,3.50285786]
[1758638922042,0.1332027,4187.4,4187.3,3.47897613]
[1758638922232,0.1332027,4187.4,4187.3,3.50285786]
[1758638922834,1.85104056,4188.4,4188.1,2.38767877]
[1758638923122,0.87098688,4188.3,4188.1,2.63157877]
[1758638923337,0.87098688,4188.2,4188.1,2.50687877]
[1758638923537,0.87098688,4188.2,4188.1,2.95667877]
[1758638923757,0.87098688,4188.2,4188.1,0.1192]
[1758638924258,0.35694632,4188.2,4188.1,2.75081758]
[1758638924462,0.35694632,4188.2,4188.1,3.20061758]
[1758638924955,0.35694632,4188.2,4188.1,3.76184644]
[1758638925255,0.001,4188.7,4188.6,2.38743255]
[1758638925490,0.35825571,4188.7,4188.6,2.38743255]
[1758638925690,0.13497089,4188.7,4188.6,0.1192]
[1758638925894,0.13497089,4188.7,4188.6,0.3631]
[1758638926091,0.13497089,4188.7,4188.6,0.1192]
[1758638926462,0.13497089,4188.7,4188.6,3.20033255]
[1758638926773,0.13497089,4188.7,4188.6,0.1192]
[1758638927170,3.67148465,4188.7,4187.9,0.4498]
[1758638927391,0.35698756,4188.6,4188.2,0.1192]
[1758638927700,0.35698756,4188.6,4187.8,0.1192]
[1758638927701,0.47618756,4188.5,4187.8,0.1192]
[1758638927997,0.35698756,4188.4,4187.8,2.5070424]
[1758638928160,0.1192,4188.5,4187.8,2.5070424]
[1758638928161,0.35698756,4188.3,4187.8,2.5070424]
[1758638928360,0.13397089,4188.2,4187.8,2.7509424]
[1758638928596,0.13397089,4188.1,4187.8,2.7509424]
[1758638928892,0.13397089,4188.0,4187.8,0.3631]
[1758638929110,0.22286127,4188.4,4187.8,0.3631]
[1758638929298,0.35656596,4188.3,4188.0,2.38777428]
[1758638929614,0.35656596,4188.2,4187.8,0.3631]
[1758638929817,0.35656596,4188.1,4187.9,2.41166409]
[1758638929993,0.13371001,4188.0,4187.9,2.73416633]
[1758638930361,0.13371001,4188.0,4187.9,2.82948802]
[1758638930563,0.13371001,4188.0,4187.9,2.75093161]
[1758638930804,0.13371001,4188.0,4187.9,0.1192]
[1758638930957,0.13371001,4188.0,4187.9,3.20073161]
[1758638931165,0.13371001,4188.0,4187.9,3.22460992]
[1758638932120,0.13291001,4188.0,4187.9,3.20073161]
[1758638933049,0.13291001,4188.0,4187.9,17.70073161]
[1758638933218,0.13291001,4188.0,4187.9,18.26198664]
[1758638933548,0.22279563,4188.6,4187.9,15.87415503]
[1758638933749,0.22279563,4188.5,4188.1,2.38767384]
[1758638933945,0.22279563,4188.4,4188.3,0.1192]
[1758638934501,0.22279563,4188.4,4188.3,2.50680356]
[1758638934721,0.22279563,4188.4,4188.3,3.43075104]
[1758638934918,0.001,4188.7,4188.6,2.38743255]
[1758638935150,0.001,4188.7,4188.6,2.53050687]
[1758638935348,0.001,4188.7,4188.6,3.22420687]
[1758638935513,0.001,4188.7,4188.6,17.72420687]
[1758638935700,0.001,4188.7,4188.6,19.35409864]
[1758638935906,0.001,4188.7,4188.6,19.80389864]
[1758638937504,0.001,4188.7,4188.6,14.6192]
[1758638938406,0.001,4188.7,4188.6,14.5]
[1758638938600,0.695,4188.7,4188.6,14.5]
[1758638938816,3.30521418,4188.7,4188.6,14.5]
[1758638939019,0.22383863,4188.7,4188.6,14.5]
[1758638939217,0.001,4188.7,4188.6,16.65562]
[1758638939445,0.001,4188.7,4188.6,14.5]
[1758638939603,0.001,4188.7,4188.6,17.13133255]
[1758638939806,0.001,4188.7,4188.6,17.58113255]
[1758638940307,0.001,4188.7,4188.6,14.5]
[1758638940520,0.001,4188.7,4188.6,16.88743255]
[1758638940743,0.001,4188.7,4188.6,17.13133255]
[1758638941148,0.001,4188.7,4188.6,17.58113255]
[1758638941521,0.001,4188.7,4188.6,15.1937]
[1758638941716,0.001,4188.7,4188.6,16.88743255]
[1758638942053,0.001,4188.7,4188.6,17.13133255]
[1758638942349,0.001,4188.7,4188.6,14.5]
[1758638942516,0.001,4188.7,4188.6,17.58113255]
[1758638942722,0.001,4188.7,4188.6,19.98809959]
[1758638943462,0.001,4188.7,4188.6,24.08809959]
[1758638945346,0.001,4188.7,4188.6,19.98809959]
[1758638945514,0.001,4188.7,4188.6,24.08809959]
[1758638946818,0.001,4188.7,4188.6,23.39439959]
[1758638947038,0.001,4188.7,4188.6,24.08809959]
[1758638947251,0.001,4188.7,4188.6,23.63829959]
[1758638947570,0.001,4188.7,4188.6,14.5]
[1758638948654,0.13466551,4188.7,4188.6,14.5]
[1758638948847,0.82866551,4188.7,4188.6,14.5]
[1758638949362,0.13466551,4188.7,4188.6,14.5]
[1758638949562,0.13466551,4188.7,4188.6,17.00663255]
[1758638949869,0.001,4188.7,4188.6,21.34953255]
[1758638950192,0.001,4188.7,4188.6,18.7182]
[1758638950366,0.13477242,4188.7,4188.6,21.10563255]
[1758638950552,0.82877242,4188.7,4188.6,14.5]
[1758638950760,7.23115341,4188.7,4188.6,14.5]
[1758638951085,8.70678413,4188.7,4188.6,14.5]
[1758638951292,8.7070463,4188.7,4188.6,14.5]
[1758638951502,5.52767075,4188.7,4188.6,14.5]
[1758638951801,6.43915341,4188.7,4188.6,14.5]
[1758638952353,4.05177786,4188.7,4188.6,14.5]
[1758638952753,6.43928453,4188.7,4188.6,14.5]
[1758638952952,6.95349884,4188.7,4188.6,14.5]
[1758638953154,5.74528453,4188.7,4188.6,14.5]
[1758638953385,7.53008773,4188.7,4188.6,14.5]
[1758638953596,8.32208773,4188.7,4188.6,14.5]
[1758638953762,5.38745317,4188.6,4187.9,4.099]
[1758638953972,5.38760466,4188.3,4187.8,4.2182]
[1758638954177,0.13390354,4188.2,4188.1,14.5]
[1758638954903,0.13390354,4188.2,4188.1,21.22861758]
[1758638955054,0.13390354,4188.2,4188.1,22.35094713]
[1758638955255,0.13390354,4188.2,4188.1,21.91994713]
[1758638955460,0.13390354,4188.2,4188.1,22.35094713]
[1758638956073,0.13390354,4188.2,4188.1,21.91994713]
[1758638956274,0.13390354,4188.2,4188.1,18.8409]
[1758638956501,0.13390354,4188.2,4188.1,4.099]
[1758638956803,0.81800354,4188.2,4188.0,4.2182]
[1758638957007,0.13310354,4188.1,4188.0,4.2182]
[1758638957164,0.58020354,4188.1,4187.7,2.38792909]
[1758638957505,3.0,4188.4,4188.0,14.5]
[1758638957666,0.67038392,4188.3,4188.0,14.5]
[1758638957866,0.4471,4188.3,4188.0,14.5]
[1758638958062,2.38837559,4188.7,4188.0,14.5]
[1758638958063,0.1202,4188.7,4188.1,0.26577717]
[1758638958291,0.22328806,4188.6,4188.1,2.41157501]
[1758638958618,0.22328806,4188.5,4188.3,2.38759192]
[1758638958902,0.1202,4188.7,4188.5,2.38748891]
[1758638959073,0.22329559,4188.6,4188.4,17.1294297]
[1758638959274,0.1202,4188.7,4188.6,2.38743255]